bitfinex-derivatives/quotes_BTCF0:USTF0_20250216
["timestamp","ask_amount","ask_price","bid_price","bid_amount"]
[1739748564868,0.00625924,96282.0,96281.0,0.26614615]
[1739748565466,0.00625924,96282.0,96281.0,0.22393624]
[1739748565677,0.00625924,96282.0,96281.0,0.26614578]
[1739748568271,0.005,96282.0,96281.0,0.26614578]
[1739748568574,0.005,96282.0,96281.0,0.29861303]
[1739748569479,0.005,96282.0,96281.0,0.32458804]
[1739748571680,0.02833706,96295.0,96281.0,0.11689334]
[1739748571876,0.3608,96296.0,96282.0,0.07467679]
[1739748572078,0.3608,96296.0,96283.0,0.04220954]
[1739748572270,0.3608,96296.0,96284.0,0.04220954]
[1739748572471,0.2076655,96295.0,96289.0,0.2076755]
[1739748572671,0.2076655,96295.0,96290.0,0.04220954]
[1739748572869,0.2076655,96295.0,96291.0,0.04220954]
[1739748573078,0.2076655,96295.0,96292.0,0.01623444]
[1739748573273,0.2076655,96295.0,96293.0,0.01623444]
[1739748573475,0.2086655,96295.0,96294.0,0.01623444]
[1739748573875,0.2096655,96295.0,96294.0,0.01623444]
[1739748574078,0.2106655,96295.0,96294.0,0.0160786]
[1739748574476,0.2106655,96295.0,96282.0,0.00015584]
[1739748574477,0.2076904,96283.0,96282.0,0.00015584]
[1739748575289,0.2076904,96283.0,96282.0,0.02613308]
[1739748576074,0.2076904,96283.0,96282.0,0.02613284]
[1739748576679,0.2106904,96283.0,96282.0,0.02613284]
[1739748576880,0.2126904,96283.0,96282.0,0.02613284]
[1739748577289,0.2096904,96283.0,96282.0,0.02613284]
[1739748577488,0.2136904,96283.0,96282.0,0.02613284]
[1739748578879,0.2146904,96283.0,96282.0,0.02613284]
[1739748579986,0.2096904,96283.0,96282.0,0.02613284]
[1739748580187,0.2126904,96283.0,96282.0,0.02613284]
[1739748580688,0.2146904,96283.0,96282.0,0.02613284]
[1739748581987,0.2166904,96283.0,96282.0,0.02613284]
[1739748585177,0.009,96283.0,96282.0,0.23382534]
[1739748585591,0.004,96283.0,96282.0,0.23382493]
[1739748585793,0.007,96283.0,96282.0,0.23382493]
[1739748586478,0.007,96283.0,96282.0,0.25006023]
[1739748586479,0.004,96283.0,96282.0,0.25006023]
[1739748586882,0.3608,96287.0,96286.0,0.2076839]
[1739748587082,0.3608,96287.0,96286.0,0.24989579]
[1739748587685,0.3608,96287.0,96286.0,0.24989378]
[1739748587879,0.2076701,96293.0,96288.0,0.2076796]
[1739748588082,0.29268,96289.0,96288.0,0.24988948]
[1739748588290,0.18388,96289.0,96288.0,0.2076796]
[1739748588483,0.18388,96289.0,96288.0,0.2498886]
[1739748589589,0.18488,96289.0,96288.0,0.24988914]
[1739748590185,0.15486237,96289.0,96288.0,0.24988914]
[1739748590387,0.15686237,96289.0,96288.0,0.24988914]
[1739748591589,0.15686237,96289.0,96288.0,0.04220913]
[1739748591797,0.36453977,96289.0,96288.0,0.04220913]
[1739748592090,0.36453977,96289.0,96288.0,0.01623428]
[1739748592283,0.36453977,96289.0,96288.0,0.04220913]
[1739748592694,0.36453977,96289.0,96288.0,0.24988873]
[1739748593689,0.36453977,96289.0,96288.0,0.24988899]
[1739748594293,0.2106774,96289.0,96288.0,0.04220939]
[1739748594594,0.5714774,96289.0,96288.0,0.04220939]
[1739748595392,0.5694774,96289.0,96288.0,0.04220939]
[1739748595593,0.5704774,96289.0,96288.0,0.04220939]
[1739748595899,0.5714774,96289.0,96288.0,0.04220939]
[1739748596600,0.5694774,96289.0,96288.0,0.04220939]
[1739748596801,0.5754774,96289.0,96288.0,0.04220939]
[1739748597696,0.2076904,96283.0,96282.0,0.00015584]
[1739748598002,0.2076904,96283.0,96282.0,0.04236764]
[1739748598898,0.2126904,96283.0,96282.0,0.04236764]
[1739748599496,0.2186904,96283.0,96282.0,0.04336764]
[1739748600093,0.2116904,96283.0,96282.0,0.04236764]
[1739748600296,0.2176904,96283.0,96282.0,0.04237054]
[1739748601500,0.2077141,96272.0,96271.0,4e-05]
[1739748601805,0.2077141,96272.0,96244.0,0.37305434]
[1739748601806,0.0519294,96271.0,96244.0,0.37305434]
[1739748602003,0.5685551,96253.0,96244.0,0.37305434]
[1739748602297,0.5685551,96253.0,96252.0,0.19664008]
[1739748602499,0.2077724,96245.0,96244.0,0.37305434]
[1739748602807,0.5685724,96245.0,96244.0,0.37253434]
[1739748603191,0.5685724,96245.0,96243.0,0.00015584]
[1739748603389,0.1396,96244.0,96243.0,0.00015584]
[1739748603995,0.2077853,96239.0,96238.0,0.37305434]
[1739748604196,0.5685853,96239.0,96238.0,0.37253434]
[1739748605696,0.5725853,96239.0,96238.0,0.37253434]
[1739748605891,0.5755853,96239.0,96238.0,0.37253434]
[1739748607006,0.5755853,96239.0,96238.0,0.33036434]
[1739748607504,0.41830668,96239.0,96224.0,0.00052]
[1739748607705,0.3608,96225.0,96214.0,0.0015591]
[1739748607897,0.3608,96217.0,96214.0,0.0015591]
[1739748608099,0.207836,96216.0,96214.0,0.0015591]
[1739748608900,0.207836,96216.0,96214.0,0.0065591]
[1739748609604,0.207836,96216.0,96214.0,0.005]
[1739748610008,0.3608,96217.0,96214.0,0.01]
[1739748610202,0.10876,96216.0,96214.0,0.01]
[1739748611003,0.2078372,96215.0,96214.0,0.01]
[1739748611199,0.2078372,96215.0,96214.0,0.005]
[1739748611512,0.207835,96216.0,96214.0,0.005]
[1739748611802,0.09043199,96215.0,96214.0,0.005]
[1739748612004,0.3608,96217.0,96214.0,0.01]
[1739748612199,0.3608,96217.0,96215.0,0.2078372]
[1739748612404,0.09043199,96230.0,96220.0,0.2078253]
[1739748612813,0.29823829,96230.0,96220.0,0.2078253]
[1739748613206,0.2078082,96229.0,96220.0,0.2078253]
[1739748613409,0.2078082,96229.0,96221.0,0.01624608]
[1739748613705,0.207811,96228.0,96215.0,0.2913]
[1739748613901,0.207811,96228.0,96216.0,0.01624622]
[1739748614101,0.207811,96228.0,96217.0,0.01624622]
[1739748614309,0.207811,96228.0,96218.0,0.01624622]
[1739748614512,0.207811,96228.0,96219.0,0.01624622]
[1739748614806,0.207811,96228.0,96220.0,0.01824622]
[1739748615004,0.207811,96228.0,96221.0,0.01624622]
[1739748615212,0.207811,96228.0,96222.0,0.01624622]
[1739748615402,0.207811,96228.0,96223.0,0.01624622]
[1739748615599,0.207811,96228.0,96218.0,0.004]
[1739748615600,0.207811,96228.0,96224.0,0.01624622]
[1739748617006,0.207811,96228.0,96224.0,0.01624613]
[1739748617407,0.2078151,96226.0,96224.0,0.01624613]
[1739748617911,0.2078151,96226.0,96224.0,0.001]
[1739748618613,0.2078151,96226.0,96224.0,0.002]
[1739748620604,0.09043199,96230.0,96206.0,0.3522554]
[1739748620811,0.3608,96215.0,96207.0,0.05524175]
[1739748621010,0.3608,96215.0,96208.0,0.04224369]
[1739748621216,0.3608,96215.0,96209.0,0.04224369]
[1739748621407,0.3608,96215.0,96210.0,0.04224369]
[1739748621608,0.2078407,96214.0,96211.0,0.01624757]
[1739748621813,0.2078407,96214.0,96212.0,0.01624757]
[1739748622011,0.2078407,96214.0,96206.0,0.3592554]
[1739748622012,0.2078407,96214.0,96213.0,0.04224369]
[1739748622509,0.37268005,96215.0,96213.0,0.25008509]
[1739748622710,0.3618,96215.0,96214.0,0.04224369]
[1739748622909,0.3618,96215.0,96214.0,0.04224212]
[1739748623110,0.001,96215.0,96214.0,0.04549138]
[1739748623413,0.19479959,96225.0,96220.0,0.2078247]
[1739748623607,0.19479959,96225.0,96221.0,0.4252]
[1739748624208,0.09043199,96270.0,96221.0,0.4252]
[1739748624209,0.00155874,96260.0,96224.0,0.45123199]
[1739748624404,0.00155874,96260.0,96221.0,0.43530003]
[1739748624405,0.09199073,96260.0,96243.0,0.7216]
[1739748624609,0.09043199,96253.0,96244.0,0.04548449]
[1739748624812,0.2077687,96247.0,96245.0,0.04548064]
[1739748625015,0.09043199,96253.0,96243.0,0.72212]
[1739748625319,0.09043199,96253.0,96244.0,0.0129932]
[1739748625505,0.2077589,96252.0,96245.0,0.0129932]
[1739748625705,0.09743199,96253.0,96244.0,0.04222691]
[1739748625913,0.09743199,96253.0,96243.0,0.72212]
[1739748626109,0.09743199,96253.0,96243.0,0.7216]
[1739748626511,0.2077655,96249.0,96243.0,0.7216]
[1739748626712,0.2077689,96247.0,96243.0,0.7216]
[1739748626909,0.2077689,96247.0,96244.0,0.01299355]
[1739748627110,0.2077689,96247.0,96243.0,0.72212]
[1739748627315,0.2077689,96247.0,96245.0,0.001]
[1739748628020,0.2117689,96247.0,96243.0,0.72212]
[1739748628213,0.2117689,96247.0,96244.0,0.01299339]
[1739748628419,0.006,96247.0,96245.0,0.01299339]
[1739748628718,0.002,96247.0,96246.0,0.01299339]
[1739748628909,0.004,96247.0,96246.0,0.05522149]
[1739748629109,0.007,96247.0,96246.0,0.05522149]
[1739748629431,0.00015584,96258.0,96256.0,0.2077472]
[1739748629713,0.10389989,96255.0,96246.0,0.0422285]
[1739748629920,0.10389989,96251.0,96247.0,0.01299279]
[1739748630105,0.10389989,96251.0,96248.0,0.01299279]
[1739748630311,0.10389989,96251.0,96247.0,0.207767]
[1739748631114,0.2077672,96248.0,96245.0,0.3608]
[1739748631513,0.2077672,96248.0,96246.0,0.2077692]
[1739748632120,0.001,96251.0,96247.0,0.01299302]
[1739748632325,0.001,96251.0,96245.0,0.3608]
[1739748632326,0.10389989,96250.0,96245.0,0.3608]
[1739748632624,0.10389989,96249.0,96247.0,0.2077681]
[1739748633016,0.2077526,96255.0,96248.0,0.01299291]
[1739748633212,0.10389989,96249.0,96248.0,0.2077659]
[1739748633410,0.10389989,96249.0,96248.0,0.24674449]
[1739748633614,0.2077555,96253.0,96248.0,0.28897151]
[1739748633816,0.10389989,96249.0,96248.0,0.24999292]
[1739748634022,0.10389989,96249.0,96248.0,0.28897151]
[1739748634219,0.001,96249.0,96248.0,0.28897151]
[1739748634627,0.001,96251.0,96248.0,0.28897151]
[1739748634925,0.10389989,96249.0,96248.0,0.24999292]
[1739748635119,0.10389989,96249.0,96248.0,0.30521236]
[1739748635325,0.2097555,96253.0,96250.0,0.2077615]
[1739748635516,0.2077555,96253.0,96251.0,0.04222663]
[1739748635715,0.2077555,96253.0,96252.0,0.04222663]
[1739748636121,0.31165539,96253.0,96252.0,0.04222663]
[1739748636723,0.31165539,96253.0,96252.0,0.04222653]
[1739748637118,0.31565539,96253.0,96252.0,0.04222653]
[1739748637934,0.11289989,96253.0,96252.0,0.04222653]
[1739748639434,0.11289989,96253.0,96252.0,0.24998383]
[1739748641438,0.11289989,96253.0,96252.0,0.26297581]
[1739748641640,0.11289989,96253.0,96252.0,0.24998383]
[1739748641839,0.11289989,96253.0,96252.0,0.26297581]
[1739748642040,0.11289989,96253.0,96252.0,0.30519974]
[1739748642347,0.11289989,96253.0,96252.0,0.29220776]
[1739748642649,0.11289989,96253.0,96252.0,0.30519977]
[1739748642849,0.11289989,96253.0,96252.0,0.29220776]
[1739748643240,0.11289989,96253.0,96252.0,0.24998383]
[1739748643745,0.11289989,96253.0,96252.0,0.26297582]
[1739748644541,0.11289989,96253.0,96252.0,0.30519925]
[1739748644740,0.009,96253.0,96252.0,0.30519925]
[1739748645841,0.009,96253.0,96252.0,0.2792156]
[1739748646041,0.009,96253.0,96252.0,0.25323004]
[1739748646441,0.009,96253.0,96252.0,0.25322815]
[1739748646642,0.009,96253.0,96252.0,0.25322744]
[1739748647151,0.009,96253.0,96252.0,0.25322741]
[1739748648548,0.11289989,96253.0,96252.0,0.25322741]
[1739748648758,0.11289989,96253.0,96252.0,0.03247886]
[1739748648949,0.11289989,96253.0,96252.0,0.24023616]
[1739748649252,0.11289989,96253.0,96252.0,0.26622124]
[1739748649636,0.11289989,96253.0,96252.0,0.24998146]
[1739748650040,0.10389989,96253.0,96252.0,0.23698859]
[1739748650251,0.10389989,96253.0,96252.0,0.22399638]
[1739748650545,0.10389989,96253.0,96252.0,0.23698848]
[1739748650751,0.10489989,96253.0,96252.0,0.25322961]
[1739748651053,0.10489989,96253.0,96252.0,0.27921368]
[1739748651557,0.10389989,96253.0,96252.0,0.27921368]
[1739748651746,0.001,96253.0,96252.0,0.27921368]
[1739748652145,0.001,96253.0,96252.0,0.30519734]
[1739748652346,0.001,96253.0,96252.0,0.72519734]
[1739748652651,0.001,96253.0,96252.0,0.72519665]
[1739748653353,0.1432,96256.0,96255.0,0.2077508]
[1739748653550,0.1432,96256.0,96255.0,0.62376638]
[1739748654259,0.1432,96256.0,96255.0,0.66599015]
[1739748654755,0.1432,96256.0,96255.0,0.66599017]
[1739748655253,0.1432,96256.0,96255.0,0.66598815]
[1739748655949,0.1432,96256.0,96255.0,0.64000449]
[1739748656860,0.1432,96256.0,96255.0,0.64100449]
[1739748659463,0.24709989,96256.0,96255.0,0.64100449]
[1739748659862,0.24709989,96256.0,96255.0,0.66698743]
[1739748660360,0.24709989,96256.0,96255.0,0.66598743]
[1739748660566,0.24709989,96256.0,96255.0,0.66698743]
[1739748661966,0.24709989,96256.0,96255.0,0.66698714]
[1739748662462,0.1432,96256.0,96255.0,0.66698708]
[1739748662664,0.00015584,96258.0,96257.0,0.2077465]
[1739748662859,0.00015584,96258.0,96257.0,0.26295973]
[1739748663067,0.10405573,96258.0,96257.0,0.30518278]
[1739748664062,0.10405573,96258.0,96257.0,0.30518289]
[1739748664253,0.10405573,96258.0,96257.0,0.27919995]
[1739748664652,0.10505573,96258.0,96257.0,0.27919995]
[1739748666564,0.10505573,96258.0,96257.0,0.07145345]
[1739748666769,0.10505573,96258.0,96257.0,0.05846199]
[1739748666970,0.10505573,96258.0,96257.0,0.04222188]
[1739748667863,0.10405573,96258.0,96257.0,0.04222188]
[1739748668070,0.2077465,96257.0,96255.0,0.3608]
[1739748668267,0.2077465,96257.0,96256.0,0.01624069]
[1739748668666,0.31164639,96257.0,96256.0,0.01624069]
[1739748669871,0.31164639,96257.0,96255.0,0.3608]
[1739748670175,0.2097465,96257.0,96256.0,0.0422261]
[1739748670567,0.31364639,96257.0,96256.0,0.0422261]
[1739748670773,0.31364639,96257.0,96256.0,0.01624086]
[1739748670969,0.31664639,96257.0,96256.0,0.01624086]
[1739748671772,0.31464639,96257.0,96256.0,0.01624086]
[1739748672464,0.31664639,96257.0,96256.0,0.01624086]
[1739748673479,0.31464639,96257.0,96256.0,0.01624086]
[1739748673779,0.36716773,96257.0,96256.0,0.01624086]
[1739748673980,0.36716773,96257.0,96256.0,0.249975]
[1739748674170,0.36416773,96257.0,96256.0,0.249975]
[1739748674370,0.36716773,96257.0,96256.0,0.249975]
[1739748674777,0.36716773,96257.0,96256.0,0.2350039]
[1739748674971,0.36616773,96257.0,96256.0,0.2350039]
[1739748675272,0.36616773,96257.0,96256.0,0.20901836]
[1739748675673,0.36516773,96257.0,96256.0,0.20901836]
[1739748676176,0.36416773,96257.0,96256.0,0.2077486]
[1739748676376,0.36616773,96257.0,96256.0,0.2077486]
[1739748676578,0.31564639,96257.0,96256.0,0.2077486]
[1739748676779,0.31364639,96257.0,96256.0,0.2077486]
[1739748676978,0.31464639,96257.0,96256.0,0.2077486]
[1739748680488,0.46861637,96257.0,96256.0,0.2077486]
[1739748684182,0.46761637,96257.0,96256.0,0.2077486]
[1739748684383,0.46861637,96257.0,96256.0,0.2077486]
[1739748684883,0.31464639,96257.0,96256.0,0.2077486]
[1739748686196,0.31364639,96257.0,96256.0,0.2077486]
[1739748686400,0.31464639,96257.0,96256.0,0.2077486]
[1739748686798,0.31464639,96257.0,96256.0,0.22398931]
[1739748687599,0.46861637,96257.0,96256.0,0.22398931]
[1739748690292,0.46861637,96257.0,96256.0,0.01624071]
[1739748690701,0.26086987,96257.0,96256.0,0.22398931]
[1739748691405,0.003,96257.0,96256.0,0.22398931]
[1739748692396,0.00015584,96258.0,96257.0,0.2077464]
[1739748692605,0.00015584,96258.0,96257.0,0.22398613]
[1739748693600,0.00215584,96258.0,96257.0,0.22398613]
[1739748693994,0.00415584,96258.0,96257.0,0.23697763]
[1739748694206,0.00415584,96258.0,96257.0,0.2207379]
[1739748694393,0.00415584,96258.0,96257.0,0.26296003]
[1739748694595,0.00415584,96258.0,96257.0,0.27919928]
[1739748695903,0.00415584,96258.0,96257.0,0.26620778]
[1739748696299,0.00415584,96258.0,96257.0,0.26620976]
[1739748697499,0.00415584,96258.0,96257.0,0.24997051]
[1739748697799,0.2916,96304.0,96257.0,0.41601594]
[1739748698002,0.2916,96304.0,96254.0,0.3012]
[1739748698003,0.2916,96304.0,96290.0,0.2076753]
[1739748698304,0.2916,96304.0,96290.0,0.6828868]
[1739748698492,0.2076518,96301.0,96290.0,0.43624004]
[1739748698690,0.34374646,96291.0,96290.0,0.01624004]
[1739748698897,1.14520657,96291.0,96255.0,0.2215]
[1739748699200,0.10389989,96266.0,96264.0,0.2077309]
[1739748699506,0.1419,96265.0,96264.0,0.2077309]
[1739748699699,0.1419,96265.0,96264.0,0.22072204]
[1739748699895,0.1419,96265.0,96264.0,0.22396975]
[1739748700296,0.1529,96270.0,96266.0,0.207725]
[1739748700696,0.10389989,96270.0,96269.0,0.2077207]
[1739748700904,0.10389989,96268.0,96264.0,0.002]
[1739748701097,0.10389989,96267.0,96265.0,0.22071988]
[1739748701390,0.10389989,96267.0,96265.0,0.2077293]
[1739748702498,0.10389989,96267.0,96265.0,0.2087293]
[1739748703501,0.10389989,96266.0,96265.0,0.2087293]
[1739748703705,0.10389989,96266.0,96265.0,0.22171996]
[1739748703898,0.001,96267.0,96266.0,0.207725]
[1739748704399,0.10489989,96267.0,96266.0,0.22071567]
[1739748704999,0.10589989,96267.0,96266.0,0.2369533]
[1739748705706,0.10489989,96267.0,96266.0,0.2369533]
[1739748706104,0.10489989,96267.0,96266.0,0.22396263]
[1739748706297,0.10389989,96267.0,96266.0,0.22396263]
[1739748706509,0.10389989,96267.0,96266.0,0.207725]
[1739748707712,0.00015584,96274.0,96272.0,0.2077141]
[1739748708009,0.00015584,96274.0,96273.0,0.58269052]
[1739748708309,0.00015584,96274.0,96273.0,0.72609052]
[1739748708510,0.00015584,96274.0,96273.0,0.74232715]
[1739748708700,0.00015584,96274.0,96273.0,0.32232715]
[1739748708899,0.00015584,96274.0,96273.0,0.53003915]
[1739748709502,0.00415584,96274.0,96273.0,0.53003915]
[1739748710014,0.00715584,96274.0,96273.0,0.53003915]
[1739748710207,0.00715584,96274.0,96273.0,0.51704863]
[1739748710513,0.00715584,96274.0,96273.0,0.53003798]
[1739748710904,0.00715584,96274.0,96273.0,0.54627453]
[1739748716907,0.00715584,96274.0,96258.0,4e-05]
[1739748717105,0.67244209,96259.0,96258.0,4e-05]
[1739748717510,0.31164209,96259.0,96258.0,4e-05]
[1739748718220,0.67244209,96259.0,96258.0,4e-05]
[1739748718818,0.67244209,96259.0,96258.0,0.00104]
[1739748719112,0.67244209,96259.0,96258.0,0.00204]
[1739748719502,0.67244209,96259.0,96258.0,0.00104]
[1739748719709,0.67544209,96259.0,96258.0,0.00104]
[1739748720409,0.67944209,96259.0,96258.0,4e-05]
[1739748720616,0.2077487,96256.0,96244.0,0.2093325]
[1739748720815,0.31164859,96256.0,96244.0,0.2093325]
[1739748721206,0.31164859,96256.0,96244.0,0.0015582]
[1739748721407,0.2077724,96245.0,96244.0,0.0015582]
[1739748721609,0.2077724,96245.0,96221.0,0.24911351]
[1739748721610,0.46469989,96245.0,96224.0,0.36235891]
[1739748721808,0.46469989,96245.0,96226.0,0.01299552]
[1739748721809,0.10389989,96229.0,96226.0,0.01299552]
[1739748722103,0.10389989,96229.0,96224.0,0.36235891]
[1739748722104,0.10389989,96229.0,96227.0,0.01299552]
[1739748722304,0.1541,96230.0,96228.0,0.01299552]
[1739748722619,0.10389989,96229.0,96224.0,0.36235891]
[1739748722818,0.10389989,96229.0,96226.0,0.01299555]
[1739748722819,0.25259989,96229.0,96226.0,0.01299555]
[1739748723016,0.1487,96229.0,96227.0,0.01299555]
[1739748723210,0.356507,96229.0,96228.0,0.01299555]
[1739748723409,0.46140689,96229.0,96228.0,0.01299555]
[1739748723810,0.46040689,96229.0,96228.0,0.01299555]
[1739748724008,0.46140689,96229.0,96228.0,0.01299555]
[1739748724609,0.46140689,96229.0,96228.0,0.01899555]
[1739748725218,0.46140689,96229.0,96228.0,0.01299555]
[1739748725420,0.46040689,96229.0,96228.0,0.01899555]
[1739748725720,0.46140689,96229.0,96228.0,0.02499544]
[1739748726122,0.46040689,96229.0,96228.0,0.02499544]
[1739748726615,0.46040689,96229.0,96228.0,0.012]
[1739748727005,0.2078134,96226.0,96224.0,0.00155891]
[1739748727215,0.10389989,96225.0,96224.0,0.00155891]
[1739748728218,0.10389989,96225.0,96224.0,0.00855891]
[1739748728909,0.10389989,96225.0,96224.0,0.00755891]
[1739748729314,0.10389989,96225.0,96224.0,0.01155891]
[1739748732722,0.31171549,96225.0,96224.0,0.01155891]
[1739748734119,0.10389989,96225.0,96203.0,0.1463]
[1739748734321,0.31174789,96210.0,96200.0,0.1]
[1739748735310,0.31174789,96210.0,96200.0,0.19046456]
[1739748735516,0.31274789,96210.0,96209.0,0.00504]
[1739748737119,0.31374789,96210.0,96209.0,0.00504]
[1739748737319,0.32590535,96210.0,96209.0,0.00504]
[1739748737919,0.32490535,96210.0,96209.0,0.00404]
[1739748738116,0.32590535,96210.0,96209.0,0.00404]
[1739748738316,0.2078674,96201.0,96200.0,0.1]
[1739748738516,0.31176729,96201.0,96200.0,0.1]
[1739748739325,0.31176729,96201.0,96200.0,0.101]
[1739748739524,0.31276729,96201.0,96200.0,0.101]
[1739748739830,0.31176729,96201.0,96200.0,0.1]
[1739748740021,0.31176729,96201.0,96200.0,0.101]
[1739748740225,0.31276729,96201.0,96200.0,0.102]
[1739748741128,0.31176729,96201.0,96200.0,0.101]
[1739748743633,0.10389989,96201.0,96200.0,0.101]
[1739748744223,0.31176729,96201.0,96200.0,0.101]
[1739748746532,0.31176729,96201.0,96200.0,0.1172507]
[1739748748350,0.10389989,96201.0,96200.0,0.3251203]
[1739748748634,0.31176739,96201.0,96200.0,0.1172507]
[1739748749627,0.31176739,96201.0,96200.0,0.11725037]
[1739748751526,0.31176739,96201.0,96200.0,0.101]
[1739748751722,0.31176739,96201.0,96200.0,0.11725054]
[1739748753530,0.31176739,96201.0,96200.0,0.101]
[1739748753840,0.31176739,96201.0,96200.0,0.11725066]
[1739748757528,0.31176739,96201.0,96200.0,0.101]
[1739748757825,0.31176739,96201.0,96200.0,0.1172504]
[1739748758028,0.31176739,96201.0,96200.0,0.101]
[1739748758231,0.31176739,96201.0,96200.0,0.11725042]
[1739748759740,0.31176739,96201.0,96200.0,0.11725021]
[1739748760644,0.31176739,96201.0,96200.0,0.11725074]
[1739748761641,0.31176739,96201.0,96200.0,0.11725028]
[1739748761842,0.31176739,96201.0,96200.0,0.14325119]
[1739748763747,0.31176739,96201.0,96200.0,0.11725028]
[1739748764333,0.67256739,96201.0,96200.0,0.11725028]
[1739748765549,0.31176739,96201.0,96200.0,0.11725028]
[1739748766247,0.67256739,96201.0,96200.0,0.11725028]
[1739748767542,0.31176739,96201.0,96200.0,0.11725028]
[1739748775857,0.31176739,96201.0,96200.0,0.11725072]
[1739748777862,0.31176739,96201.0,96200.0,0.11725056]
[1739748781062,0.31319208,96201.0,96200.0,0.11725056]
[1739748781851,0.31319208,96201.0,96200.0,0.11725102]
[1739748784362,0.20929219,96201.0,96200.0,0.11725102]
[1739748784556,0.31319208,96201.0,96200.0,0.11725102]
[1739748786271,0.00142469,96201.0,96200.0,0.32512072]
[1739748786767,0.20929219,96201.0,96200.0,0.11725102]
[1739748787459,0.20929219,96201.0,96200.0,0.11725024]
[1739748789365,0.20929219,96201.0,96200.0,0.1172505]
[1739748789970,0.20929219,96201.0,96200.0,0.11725051]
[1739748790369,0.31319208,96201.0,96200.0,0.11725051]
[1739748790672,0.67399208,96201.0,96200.0,0.11725051]
[1739748791566,0.67399208,96201.0,96200.0,0.11725131]
[1739748795567,0.82694595,96201.0,96200.0,0.11725131]
[1739748796771,0.82694595,96201.0,96200.0,0.01625131]
[1739748796971,0.2078978,96187.0,96186.0,0.18636695]
[1739748797179,0.46612458,96187.0,96165.0,0.34900304]
[1739748797478,0.2079277,96174.0,96172.0,0.2079291]
[1739748797677,0.6770168,96173.0,96168.0,0.1164]
[1739748797878,0.6770168,96173.0,96169.0,0.01300245]
[1739748798069,0.6770168,96173.0,96172.0,0.2079302]
[1739748798270,0.4703,96173.0,96172.0,0.21950796]
[1739748798680,0.3608,96173.0,96172.0,0.21950796]
[1739748799069,0.3618,96173.0,96172.0,0.23576101]
[1739748799682,0.001,96173.0,96172.0,0.23576101]
[1739748800674,0.002,96173.0,96172.0,0.23576101]
[1739748801073,0.002,96173.0,96172.0,0.23976101]
[1739748801683,0.002,96173.0,96172.0,0.23975951]
[1739748802571,0.3608,96187.0,96185.0,0.2079021]
[1739748802766,0.3608,96187.0,96185.0,0.22090305]
[1739748803374,0.3608,96187.0,96185.0,0.2371561]
[1739748803573,0.3608,96187.0,96185.0,0.22415515]
[1739748803776,0.00115592,96186.0,96185.0,0.24115547]
[1739748805773,0.00115592,96186.0,96185.0,0.24115492]
[1739748806278,0.36195592,96186.0,96185.0,0.24115492]
[1739748806672,0.36195592,96186.0,96185.0,0.24315492]
[1739748806870,0.36295592,96186.0,96185.0,0.03725282]
[1739748807072,0.46685581,96186.0,96185.0,0.03725282]
[1739748807273,0.57335581,96186.0,96185.0,0.02425305]
[1739748807473,0.46585581,96186.0,96185.0,0.03125479]
[1739748807684,0.46685581,96186.0,96185.0,0.03725479]
[1739748807884,0.46685581,96186.0,96185.0,0.03725419]
[1739748808879,0.46685581,96186.0,96185.0,0.05350596]
[1739748809677,0.46585581,96186.0,96185.0,0.04250482]
[1739748809874,0.46485581,96186.0,96185.0,0.03650523]
[1739748810075,0.46485581,96186.0,96185.0,0.04150523]
[1739748810276,0.46485581,96186.0,96185.0,0.02525218]
[1739748811185,0.2079138,96180.0,96175.0,0.2079231]
[1739748811383,0.3608,96176.0,96175.0,0.2079231]
[1739748811572,0.46469989,96176.0,96175.0,0.23717832]
[1739748812990,0.46469989,96176.0,96175.0,0.23917832]
[1739748813286,0.46469989,96176.0,96175.0,0.03125522]
[1739748813483,0.46469989,96176.0,96175.0,0.03425522]
[1739748813789,0.46569989,96176.0,96175.0,0.03625522]
[1739748814384,0.46669989,96176.0,96175.0,0.03625602]
[1739748814583,0.46669989,96176.0,96175.0,0.24417972]
[1739748815284,0.67462139,96176.0,96175.0,0.03625602]
[1739748815486,0.46669989,96176.0,96175.0,0.24417972]
[1739748815896,0.67462139,96176.0,96175.0,0.023253]
[1739748816085,0.2079546,96161.0,96160.0,0.2079557]
[1739748816290,0.3608,96161.0,96160.0,0.2079557]
[1739748817293,0.3628,96161.0,96160.0,0.2149557]
[1739748823301,0.002,96161.0,96160.0,0.23121028]
[1739748827205,0.3377,96171.0,96170.0,0.2079345]
[1739748827406,0.2249,96171.0,96170.0,0.25019343]
[1739748827611,0.1129,96171.0,96170.0,0.25019343]
[1739748828009,0.1129,96171.0,96170.0,0.68319512]
[1739748828409,0.1129,96171.0,96170.0,0.69944723]
[1739748829009,0.1139,96171.0,96170.0,0.70044723]
[1739748829410,0.001,96171.0,96170.0,0.70044723]
[1739748830011,0.1134,96179.0,96170.0,0.70044723]
[1739748830012,0.1134,96179.0,96170.0,0.49250924]
[1739748830315,0.1134,96179.0,96178.0,0.2079172]
[1739748830516,0.1134,96179.0,96178.0,0.26317368]
[1739748830712,0.1134,96179.0,96178.0,0.27942579]
[1739748831320,0.1144,96179.0,96178.0,0.25342244]
[1739748832005,0.1134,96179.0,96178.0,0.22616931]
[1739748832209,0.1134,96179.0,96178.0,0.25542233]
[1739748832516,0.21729989,96179.0,96178.0,0.25742233]
[1739748834021,0.21729989,96179.0,96178.0,0.25742218]
[1739748835322,0.00015592,96186.0,96185.0,0.2079021]
[1739748835519,0.11605592,96186.0,96185.0,0.23715497]
[1739748835718,0.21995581,96186.0,96185.0,0.23715497]
[1739748836016,0.21995581,96186.0,96185.0,0.22090329]
[1739748836213,0.21995581,96186.0,96185.0,0.65715239]
[1739748836514,0.21995581,96186.0,96185.0,0.6734045]
[1739748836821,0.21995581,96186.0,96185.0,0.6744045]
[1739748837022,0.21995581,96186.0,96185.0,0.6754045]
[1739748838012,0.58075581,96186.0,96185.0,0.2391554]
[1739748838211,0.58075581,96186.0,96185.0,0.25540266]
[1739748838722,0.58075581,96186.0,96185.0,0.04750209]
[1739748839921,0.39718504,96186.0,96185.0,0.04750209]
[1739748840116,0.39718504,96186.0,96185.0,0.03125311]
[1739748840322,0.39718504,96186.0,96185.0,0.04750436]
[1739748841627,0.39718504,96186.0,96185.0,0.04750437]
[1739748842722,0.39718504,96186.0,96185.0,0.04650437]
[1739748842925,0.39718504,96186.0,96185.0,0.25540637]
[1739748843117,0.50628504,96186.0,96185.0,0.67540637]
[1739748843318,0.50628504,96186.0,96185.0,0.67540645]
[1739748843523,0.50628504,96186.0,96185.0,0.67440645]
[1739748843730,0.50628504,96186.0,96185.0,0.67540645]
[1739748844228,0.50628504,96186.0,96185.0,0.67440645]
[1739748844432,0.50628504,96186.0,96185.0,0.67540645]
[1739748845324,0.50628504,96186.0,96185.0,0.67440645]
[1739748845530,0.50628504,96186.0,96185.0,0.67540645]